Cogmind - Beta 13 @@@ ROGUE MODE // 2024.04.06 @ 17:55:09 Player: SovietPaperclip Result: Destroyed by 9P-Q6J(R) with Subdweller Beam Cannon Performance ------------- Evolutions (0) 0 Regions Visited (3) 600 Robots Destroyed (42) 210 Value Destroyed (1154) 1154 Prototype IDs (0) 0 Alien Tech Used (0) 0 Bonus (0) 0 TOTAL SCORE: 1964 Bonus ------- None Cogmind --------- Core Integrity 0/250 Matter 197/300 Energy 42/100 System Corruption 0% Temperature Cool (9) Movement Treading (320) Ox2 Location -10/Subcaves Parts ------- > --- POWER (1) -------- (None) > --- PROPULSION (2) --- Light Treads > --- UTILITY (2) ------ Improved Heat Sink High-capacity Storage Unit > --- WEAPON (2) ------- Beam Cannon Battle Cannon > --- INVENTORY (20) --- Light Treads Light Treads Medium Storage Unit Structural Scanner Sensor Array Light Armor Plating Hacking Suite Hacking Suite Beam Cannon Subdweller Machine Gun Subdweller Machine Gun Grenade Launcher Rocket Launcher Peak State ------------ > --- POWER ------------ Light Nuclear Core > --- PROPULSION ------- Light Treads Light Treads > --- UTILITY ---------- Improved Heat Sink High-capacity Storage Unit > --- WEAPON ----------- Battle Cannon Rocket Launcher > --- INVENTORY -------- Light Ion Engine Subdweller Power Source Light Treads Light Treads Light Treads Light Treads Medium Storage Unit Structural Scanner Sensor Array Light Armor Plating Hacking Suite Hacking Suite Beam Cannon Beam Cannon Beam Cannon Assault Rifle Grenade Launcher [Rating: 15] Favorites ----------- Power Light Nuclear Core Engine Ion Engine Power Core Light Nuclear Core Propulsion Light Treads Treads Light Treads Utility High-capacity Storage Unit Device Improved Heat Sink Storage High-capacity Storage Unit Weapon Beam Cannon Energy Gun Medium Laser Energy Cannon Beam Cannon Ballistic Gun Assault Rifle Ballistic Cannon Battle Cannon Launcher Rocket Launcher Build | -11 -10 -10 -10 ------- Run | Yrd Mat Min Sub Slots Evolved . | . . . . Power . | . . . . Propulsion . | . . . . Utility . | . . . . Weapon . | . . . . Parts Attached 31 | 5 13 . 13 Power 6 | 1 2 . 3 Engine 3 | 1 . . 2 Core 3 | . 2 . 1 Reactor . | . . . . Propulsion 6 | 2 2 . 2 Treads 6 | 2 2 . 2 Leg . | . . . . Wheel . | . . . . Hover . | . . . . Flight . | . . . . Utility 5 | . 4 . 1 Device 2 | . 1 . 1 Storage 3 | . 3 . . Processor . | . . . . Hackware . | . . . . Protection . | . . . . Artifact . | . . . . Weapon 14 | 2 5 . 7 Energy Gun 1 | 1 . . . Energy Cannon 7 | . 4 . 3 Ballistic Gun 1 | 1 . . . Ballistic Cannon 1 | . . . 1 Launcher 4 | . 1 . 3 Special Weapon . | . . . . Impact Weapon . | . . . . Slashing Weapon . | . . . . Piercing Weapon . | . . . . Special Melee Weapon . | . . . . Unidentified Prototypes . | . . . . Parts Lost 8 | . 1 . 7 Power 4 | . 1 . 3 Propulsion 3 | . . . 3 Utility . | . . . . Weapon 1 | . . . 1 Highest Loss Streak 3 | . 1 . 3 To Critical Strikes . | . . . . Average Slot Usage (%) 97 | . 92 100 99 Engine 8 | . 9 . 9 Core 5 | . 3 14 4 Treads 27 | . 28 28 27 Device 13 | . 12 14 14 Storage 13 | . 12 14 14 Energy Cannon 17 | . 22 28 11 Ballistic Cannon 6 | . . . 11 Launcher 2 | . . . 4 Naked Turns . | . . . . Heaviest Build 53 | 9 52 52 53 Greatest Support 40 | 40 40 40 40 Greatest Overweight (x) 1 | . 1 1 1 Average Overweight (x) . | . . 1 1 Largest Inventory Capacity 20 | 5 20 20 20 Average Capacity 18 | 5 17 20 20 Most Carried 18 | 4 18 17 18 Average Carried 14 | 1 13 15 15 Final Capacity 20 | 5 20 20 20 Final Carried 17 | 2 15 17 13 Class Distribution -------------------- 100% | Mutant Dominant Class ---------------- Mutant | -10/Materials Mutant | -10/Mines Mutant | -10/Subcaves Resources | -11 -10 -10 -10 ----------- Run | Yrd Mat Min Sub Matter Collected 766 | 203 198 58 307 Remotely . | . . . . Salvage Created 1254 | . 733 109 412 Parts 90 | . 49 5 36 Haulers Intercepted 2 | . 2 . . Recyclers Shooed . | . . . . Parts Field Recycled . | . . . . Retrieved Matter . | . . . . Parts Self-Destructed 10 | . . . 10 Prevented . | . . . . Kills | -11 -10 -10 -10 ------- Run | Yrd Mat Min Sub Combat Hostiles Destroyed 29 | . 12 2 15 Cannons 18 | . 8 2 8 AOE 11 | . 4 . 7 Classes Destroyed 10 | . 8 . 2 Worker 1 | . 1 . . Builder 2 | . 2 . . Tunneler 2 | . 1 1 . Hauler 2 | . 2 . . Recycler 1 | . 1 . . Operator 3 | . 3 . . Watcher 2 | . 2 . . Swarmer 4 | . . . 4 Grunt 16 | . 12 2 2 Subdweller 9 | . . . 9 Best Kill Streak 8 | . 8 2 4 Combat Bots Only 4 | . 4 2 4 Max Kills in Single Turn 3 | . 3 1 3 Gunslinging . | . . . . Exploded 3 | . 1 . 3 Melee . | . . . . Uniques/NPCs Destroyed . | . . . . Combat | -11 -10 -10 -10 -------- Run | Yrd Mat Min Sub Hostile Shots Fired 139 | . 50 5 84 Missed 52 | . 15 1 36 Damage Taken 1504 | . 451 53 1000 Core 252 | . 78 33 141 Absorbed by Shields . | . . . . Core Remaining (%) 100 | 100 . . . Volleys Fired 114 | . 47 6 61 Largest 2 | . 2 2 2 Hottest 120 | . 120 120 120 Shots Fired 216 | . 94 12 110 Gun 8 | . 8 . . Cannon 196 | . 80 12 104 Launcher 12 | . 6 . 6 Special . | . . . . Kinetic 56 | . 7 . 49 Thermal 148 | . 81 12 55 Explosive 12 | . 6 . 6 Electromagnetic . | . . . . Robot Hit Streak 14 | . 14 7 14 Robot Miss Streak 4 | . 3 4 2 Penetration Max . | . . . . Secondary Targets . | . . . . Shots Hit Robots 101 | . 46 6 49 Core Hits 61 | . 34 4 23 Critical Kills . | . . . . Critical Parts Destroyed . | . . . . Critical Strikes . | . . . . Melee Attacks . | . . . . Impact . | . . . . Slashing . | . . . . Piercing . | . . . . Sneak Attacks . | . . . . Combat Hostiles . | . . . . Follow-up Attacks . | . . . . Damage Inflicted 2641 | . 1211 103 1327 Guns 52 | . 52 . . Cannons 1880 | . 819 103 958 Explosions 709 | . 340 . 369 Melee . | . . . . Ramming . | . . . . Kinetic 576 | . 39 . 537 Thermal 1356 | . 832 103 421 Explosive 709 | . 340 . 369 Electromagnetic . | . . . . Impact . | . . . . Slashing . | . . . . Piercing . | . . . . Highest Corruption . | . . . . Average Corruption . | . . . . Corruption Purged . | . . . . Corruption Blocked . | . . . . Overload Shots . | . . . . Overflow Damage 17 | . . . 17 Projectiles . | . . . . Explosions 17 | . . . 17 Melee . | . . . . Knockbacks 6 | . . . 6 Impact . | . . . . Kinetic 6 | . . . 6 Secondary . | . . . . Self-Inflicted Damage 53 | . . . 53 Shots 2 | . . . 2 Rammed 1 | . 1 . . Targets Rammed 1 | . 1 . . Kicked . | . . . . Crushed . | . . . . Highest Temperature 248 | . 248 128 1 Average Temperature 74 | . 76 64 1 Received Heat Transfer 423 | . 246 30 147 Siege Activations . | . . . . Robots Corrupted . | . . . . Combat Hostiles . | . . . . Parts Fried . | . . . . Impact Corruptions . | . . . . Robots Melted . | . . . . Combat Hostiles . | . . . . Parts Melted 6 | . 2 1 3 Heat Transferred 2886 | . 1776 222 888 Parts Sabotaged . | . . . . Parts Stolen . | . . . . Parts Stripped . | . . . . Power Chain Reactions . | . . . . Alert | -11 -10 -10 -10 ------- Run | Yrd Mat Min Sub Peak Influence 239 | . 239 59 . Initial 4 | . . 4 . Average 113 | . 147 35 . Maximum Alert Level 1 | . 1 . . Low Security (%) 73 | 100 62 100 . Level 1 26 | . 37 . . Level 2 . | . . . . Level 3 . | . . . . Level 4 . | . . . . Level 5 . | . . . . High Security . | . . . . Max Security . | . . . . Squads Dispatched 3 | . 3 . . Investigation 1 | . 1 . . Extermination . | . . . . Reinforcement 2 | . 2 . . Assault . | . . . . Garrison . | . . . . Intercept . | . . . . Searches Triggered . | . . . . Construction Impeded . | . . . . Haulers Reinforced . | . . . . Active Scanning Responses . | . . . . Cargo Convoy Interrupts . | . . . . Stealth | -11 -10 -10 -10 --------- Run | Yrd Mat Min Sub Distress Signals 2 | . 2 . . Communications Jammed . | . . . . Distress Signals . | . . . . Times Spotted 49 | . 26 2 21 Peak Tracking Total 6 | . 5 2 6 Tactical Retreats 2 | . . . 2 Traps | -11 -10 -10 -10 ------- Run | Yrd Mat Min Sub Traps Triggered 3 | . 3 . . Indirectly . | . . . . Trap Hack Attempts . | . . . . Triggered . | . . . . Disarmed . | . . . . Reprogrammed . | . . . . Reused . | . . . . Traps Extracted . | . . . . Installed . | . . . . Triggered . | . . . . Machines | -11 -10 -10 -10 ---------- Run | Yrd Mat Min Sub Machines Disabled 3 | . 3 . . Max in Single Turn 1 | . 1 . . Machines Repaired . | . . . . Machines Dismantled . | . . . . Machines Sabotaged . | . . . . Overloaded Fab Kills . | . . . . Hacking | -11 -10 -10 -10 --------- Run | Yrd Mat Min Sub Machines Accessed 1 | . 1 . . Terminals 1 | . 1 . . Fabricators . | . . . . Repair Stations . | . . . . Recycling Units . | . . . . Scanalyzers . | . . . . Garrison Access . | . . . . Total Hacks 1 | . 1 . . Successful . | . . . . Failed 1 | . 1 . . Catastrophic . | . . . . Database Lockouts . | . . . . Manual . | . . . . Terminals 1 | . 1 . . Fabricators . | . . . . Repair Stations . | . . . . Recycling Units . | . . . . Scanalyzers . | . . . . Garrison Access . | . . . . Terminal Hacks . | . . . . Fabricator Hacks . | . . . . Repair Station Hacks . | . . . . Recycling Unit Hacks . | . . . . Scanalyzer . | . . . . Garrison Access Hacks . | . . . . Unauthorized Hacks . | . . . . Terminals . | . . . . Fabricators . | . . . . Repair Stations . | . . . . Recycling Units . | . . . . Scanalyzers . | . . . . Garrison Access . | . . . . Data Cores Recovered 1 | . 1 . . Used . | . . . . Hacking Detections 1 | . 1 . . Full Trace Events . | . . . . Feedback Events . | . . . . Feedback Blocked . | . . . . Robot Schematics Acquired . | . . . . Robots Built . | . . . . Authchips . | . . . . Time . | . . . . Total Robot Build Rating . | . . . . Part Schematics Acquired . | . . . . Parts Built . | . . . . Authchips . | . . . . Time . | . . . . Total Part Build Rating . | . . . . Parts Repaired . | . . . . Time . | . . . . Parts Recycled . | . . . . Recycled Matter . | . . . . Retrieved Matter . | . . . . Retrieved Components . | . . . . Parts Scanalyzed . | . . . . Part Schematics Acquired . | . . . . Parts Damaged . | . . . . Bothacking | -11 -10 -10 -10 ------------ Run | Yrd Mat Min Sub Used RIF Installer . | . . . . Robots Hacked . | . . . . Non-combat . | . . . . Combat . | . . . . Robot Hacks Applied . | . . . . Relay Couplers Released . | . . . . Fabnet Peak Effective % . | . . . . Robots Rewired . | . . . . Allies Hacked . | . . . . Hacks Repelled . | . . . . Allies | -11 -10 -10 -10 -------- Run | Yrd Mat Min Sub Total Allies 2 | . . 2 . Largest Group 2 | . . 2 2 Highest-Rated Group 43 | . . 43 43 Highest-Rated Ally 31 | . . 31 31 Total Orders . | . . . . Ally Attacks 4 | . . . 4 Total Damage 41 | . . . 41 Kills . | . . . . Allies Corrupted . | . . . . Allies Melted . | . . . . Intel | -11 -10 -10 -10 ------- Run | Yrd Mat Min Sub Robot Analysis Total . | . . . . Derelict Logs Recovered 1 | . . 1 . Drone Launches . | . . . . Drone Recoveries . | . . . . Exploration | -11 -10 -10 -10 ------------- Run | Yrd Mat Min Sub Turns Passed 3957 | 63 1269 461 2164 Spaces Moved 1527 | 39 491 178 819 Core 9 | 9 . . . Treads 1518 | 30 491 178 819 Legs . | . . . . Wheels . | . . . . Hover . | . . . . Flight . | . . . . Fastest Speed 50 | 50 160 240 240 Average Speed 229 | 134 216 240 240 Slowest Speed 240 | 160 240 240 240 Overloaded Moves . | . . . . Propulsion Burnouts . | . . . . Robots Hopped . | . . . . Cave-ins Triggered . | . . . . Exploration Rate (%) 46 | 4 81 44 56 Regions Visited 3 Branch Regions 2 Pre-discovered Areas . | . . . . Known Exits Taken . | . . . . Unknown Exits Taken 3 | 1 1 1 . Scrap Searched 1 | . . . 1 Spaces Dug . | . . . . Terrain Destroyed 78 | . 27 . 51 Melee . | . . . . Projectile . | . . . . AOE 78 | . 27 . 51 Terrain Rammed . | . . . . Walls Destroyed . | . . . . Machines Disabled . | . . . . Actions | -11 -10 -10 -10 --------- Run | Yrd Mat Min Sub Total 1764 | 50 606 201 907 Wait 43 | . 24 16 3 Move 1524 | 38 490 177 819 Hop . | . . . . Pick Up 41 | 7 26 2 6 Fast Attach . | . . . . Attach 19 | 5 8 . 6 Detach . | . . . . Swap 12 | . 5 . 7 Drop 10 | . 5 . 5 Fire 114 | . 47 6 61 Melee . | . . . . Ram . | . . . . Kick . | . . . . Crush 1 | . 1 . . Escape Stasis . | . . . . Rewire . | . . . . Trap . | . . . . Miscellaneous . | . . . . Route ------- -11/Scrapyard -10/Materials (discovered 4 exits: [*Mat x3] / [*Min]) -10/Mines -10/Subcaves (discovered 2 exits: [*Mat x2]) History --------- Turn | Location | Event 4 | -11/Scrapyard | Discovered new exit (range 16) 64 | -11/Scrapyard | Entered Materials 309 | -10/Materials | Build established: Mutant 613 | -10/Materials | Discovered new exit (range 16) 860 | -10/Materials | Discovered new exit (range 16) 1050 | -10/Materials | Discovered new exit (range 6) 1312 | -10/Materials | Discovered new exit (range 6) 1333 | -10/Materials | Entered Mines 1660 | -10/Mines | Received a Rocket Launcher from a helpful Derelict 1753 | -10/Mines | A weapon hastily lodged in a ceiling crevice suddenly fell to the ground 1789 | -10/Mines | Discovered new exit (range 3) 1794 | -10/Mines | Entered Subcaves 1794 | -10/Subcaves | Accompanied by 2 allies 1799 | -10/Subcaves | Led the pair of lost Derelicts to an unsafe place 1965 | -10/Subcaves | Core integrity fell below 50% 2036 | -10/Subcaves | A swath of the cavern ceiling suddenly collapsed 2491 | -10/Subcaves | Ambushed by Subdweller buried in earth 2562 | -10/Subcaves | Discovered new exit (range 11) 2886 | -10/Subcaves | Shifting Twisted Machinery released Sub. Beam Cannon 2896 | -10/Subcaves | Shifting Twisted Machinery released Sub. Power Source 3619 | -10/Subcaves | Ambushed by Subdweller buried in earth 3622 | -10/Subcaves | Ambushed by Subdweller buried in earth 3846 | -10/Subcaves | Discovered new exit (range 12) 3912 | -10/Subcaves | A swath of the cavern ceiling suddenly collapsed 3930 | -10/Subcaves | A Subdweller sparked back to life 3930 | -10/Subcaves | A Subdweller sparked back to life 3930 | -10/Subcaves | A Subdweller sparked back to life 3934 | -10/Subcaves | Core integrity fell below 20% 3958 | -10/Subcaves | Destroyed by 9P-Q6J(R) with Subdweller Beam Cannon Last Messages --------------- collapses. 03930_ RF-E4U(R) creaks and sparks as it begins to move. 03930_ 8L-3V3(R) creaks and sparks as it begins to move. 03930_ 69-H64(R) creaks and sparks as it begins to move. 03930_ EZ-QLP(u) builds Twisted Machinery. 03931_ Lgt. Ion Engine destroyed. 03933_ EZ-QLP(u) cries out in pain. 03933_ EZ-QLP(u) destroyed. 03935_ Beam Cannon destroyed. 03935_ 8L-3V3(R) destroyed. 03937_ 69-H64(R) destroyed. 03938_ RF-E4U(R) affixes Scrap Shield Fragment to Scrap Shield. 03941_ RF-E4U(R) knocked back. 03941_ Lgt. Treads destroyed. 03944_ RF-E4U(R) knocked back. 03957_ 9P-Q6J(R): "SUBHATE!" Map ----- +----------------------------------------------------+ | | | | | | | | | | | | | | | ?????????????????????????????????????????????????? | | ?????????????????????????????????????????????????? | | ?????????????????????????????????????????????????? | | ?????????????????????????????????????????????????? | | ?????????????????????????????????????????????????? | | ?????????????????????????????????????????????????? | | ?????????????????????????????????????????????????? | | ?????????????????????????????????????????????????? | | ?????????????????????????????????????????????????? | | ?????????????????????????????????????????????????? | | ?????????????????????????????????????????????????? | | ???????????????????????##????????????????????????? | | ?????????????????????### ??##????????????????????? | | ????????????????????## # ## ###??????????????????? | | ????????????????????# #??????????????????? | | ???????????????#; # # ;##?????????????????? | | ?????????????????#;; #??#### ??????????? | | ????????????????????# #?# ??????????? | | ????????????????????# @ #?# ?????????? | | ????????????????????# * <# ???????????? | | ????????????????????#; %" # ""???????????? | | ????????????????????## % " ##?????????? | | ?????????????????? ?#; # =& "" ##" ##????????? | | ?????????????? #;; ## |*%"" #? "#????????? | | ?????????????? ###; # R "####""""#???????? | | ?????????????? ##??### # # ## "" ## #??? | | ???????????????????????## R "" ?#??? | | ??????????????????????## "" #??? #??? | | ?????????????????????## ### ##??? #??? | | ?????????????????????# #### #### #???# ##??? | | ?????????????????????# ###### #????### #??? | | ???????????????????? ## #??# ####### #??? | | ??????????????????# ??### #?## < #??? | | ??????????????????##?????# ### ##??? | | ??????????????????????????# ## #???? | | ??????????????????????????# ##? #???? | | ??????????????????????????# ### #??# #???? | | ????????????????????? ???# #?# #??###???? | | ???????????????????? ??## ### ### #????????? | | ?????????????????# ?## ####?## #????????? | | ???????????????????# ## ####??##????????? | | ???????????????????# ##???????????? | | ????????????????# ###?????????? | +----------------------------------------------------+ Best States ------------- Heat Dissipation 39 Energy Generation 15 Energy Capacity 250 Matter Stores 300 Matter Capacity 300 Sight Range 16 Terrain Scan Density 10 Evasion (%) 50 Recoil Reduction 2 Item Schematics ----------------- None Robot Schematics ------------------ None Fabricated ------------ Nothing Alien Tech Used ----------------- None Achievements -------------- None Challenges ------------ None Game ------ Seed AlloySupersonicArchive Manual? 0 Play Time 00:14:32 Cumulative 46.7 hours Start 2024.04.06 @ 17:40:59 End 2024.04.06 @ 17:55:09 Sessions 1 Manual Loads 0 Difficulty Rogue Special Mode None Game No. 65 Rogue 65 Adventurer 0 Explorer 0 Win Type - Total 1 Types 1/0/0/0/0/0/0/0/0 Lore% 28 Gallery% 30 Achievement% 31 Wizard Run 0 Options --------- Layout 1 ASCII 0 Keyboard 0 Movement Mouse Keybinds 0 Fullscreen 2 Font 32/Smallcaps Map View 50x40 Zoom Use 0% Tactical HUD 1 Map Filters NONE Filters NONE Steam 1 RUN: de258dcc-dcf2-45b2-ab4e-07d5f2b75efc